[Event "AUT-ch U14 Boys 2022"]
[Site "Sankt Veit an der Glan"]
[Date "2022.04.10"]
[Round "1"]
[White "Leitgeb, Julian"]
[Black "Pavlov, Alexander"]
[Result "1-0"]
[ECO "C65"]
[WhiteElo "2004"]
[BlackElo "1751"]
[Annotator "NA RC"]
[PlyCount "99"]
[EventDate "2022.04.11"]
[EventType "swiss"]
[EventCountry "AUT"]
[SourceTitle "playchess.com"]
[Source "ChessBase"]
[SourceQuality "1"]
[TimeControl "5400+30"]

1. e4 {[%emt 0:00:03]} e5 {[%emt 0:00:07]} 2. Nf3 {[%emt 0:00:05]} Nc6 {[%emt 0:00:07]} 3. Bb5 {[%emt 0:00:05]} Nf6 {[%emt 0:00:43]} 4. d3 {[%emt 0:01:46]} Ne7 {[%emt 0:00:22]} 5. O-O {[%emt 0:02:04]} Ng6 {[%emt 0:00:11]} 6. c3 {[%emt 0:04:19]} c6 {[%emt 0:02:59]} 7. Ba4 {[%emt 0:01:19]} Be7 {[%emt 0:00:51]} 8. Re1 {[%emt 0:02:11]} O-O {[%emt 0:00:20]} 9. Nbd2 {[%emt 0:04:36]} Kh8 {[%emt 0:07:26]} 10. Nf1 {[%emt 0:02:34]} a5 {[%emt 0:03:56]} 11. Ng3 {[%emt 0:02:28]} d6 {[%emt 0:04:21]} 12. h3 {[%emt 0:03:04]} h6 {[%emt 0:01:20]} 13. Bc2 {[%emt 0:03:07]} Nh7 {[%emt 0:01:58]} 14. d4 {[%emt 0:06:09]} Ng5 {[%emt 0:02:37]} 15. Nf5 {[%emt 0:03:30]} Nxf3+ {[%emt 0:09:14]} 16. Qxf3 {[%emt 0:01:53]} Nh4 {[%emt 0:00:38]} 17. Qh5 {[%emt 0:07:13]} Nxf5 {[%emt 0:02:02]} 18. exf5 {[%emt 0:00:20]} Bg5 {[%emt 0:18:16]} 19. Bxg5 {[%emt 0:03:12]} Qxg5 {[%emt 0:00:05]} 20. Qxg5 {[%emt 0:00:04]} hxg5 {[%emt 0:00:03]} 21. dxe5 {[%emt 0:00:17]} Re8 {[%emt 0:04:01]} 22. exd6 {[%emt 0:00:21]} Bd7 {[%emt 0:00:10]} 23. g4 {[%emt 0:01:54]} Kg8 {[%emt 0:01:19]} 24. a3 {[%emt 0:03:16]} Kf8 {[%emt 0:02:20]} 25. Bb3 {[%emt 0:00:46]} a4 {[%emt 0:00:56]} 26. Ba2 {[%emt 0:01:00]} b5 {[%emt 0:00:54]} 27. Kf1 {[%emt 0:02:50]} Rad8 {[%emt 0:02:41]} 28. Rxe8+ {[%emt 0:01:10]} Bxe8 {[%emt 0:01:55]} 29. Rd1 {[%emt 0:01:28]} c5 {[%emt 0:01:34]} 30. f3 {[%emt 0:01:29]} c4 {[%emt 0:00:25]} 31. Bb1 {[%emt 0:00:15]} Bd7 {[%emt 0:06:47]} 32. Be4 {[%emt 0:00:17]} Re8 {[%emt 0:01:59]} 33. Kf2 {[%emt 0:00:14]} Re5 {[%emt 0:02:32]} 34. Ke3 {[%emt 0:01:20]} Ke8 {[%emt 0:01:13]} 35. Rd5 {[%emt 0:00:54]} f6 {[%emt 0:02:20]} 36. Rxe5+ {[%emt 0:00:45]} fxe5 {[%emt 0:00:04]} 37. Bd5 {[%emt 0:00:06]} Bc8 {[%emt 0:00:48]} 38. Ke4 {[%emt 0:00:13]} b4 {[%emt 0:01:35]} 39. axb4 {[%emt 0:00:25]} a3 {[%emt 0:00:02]} 40. bxa3 {[%emt 0:00:02]} g6 {[%emt 0:00:22]} 41. fxg6 {[%emt 0:00:13]} Bb7 {[%emt 0:00:34]} 42. Bxb7 {[%emt 0:00:15]} Kd7 {[%emt 0:00:48]} 43. g7 {[%emt 0:00:12]} Kxd6 {[%emt 0:00:12]} 44. g8=Q {[%emt 0:00:32]} Ke7 {[%emt 0:00:02]} 45. Bd5 {[%emt 0:00:22]} Kd6 {[%emt 0:00:13]} 46. Qe6+ {[%emt 0:00:07]} Kc7 {[%emt 0:00:06]} 47. Qc6+ {[%emt 0:00:21]} Kd8 {[%emt 0:00:09]} 48. Kf5 {[%emt 0:00:37]} Ke7 {[%emt 0:00:19]} 49. Qc7+ {[%emt 0:00:07]} Kf8 {[%emt 0:00:12]} 50. Qf7# {[%emt 0:00:09]} 1-0

[Event "AUT-ch U14 Boys 2022"]
[Site "Sankt Veit an der Glan"]
[Date "2022.04.10"]
[Round "1"]
[White "Jetzl, Julian"]
[Black "Stadlbauer, Maximilian"]
[Result "1-0"]
[ECO "D36"]
[WhiteElo "1868"]
[BlackElo "1450"]
[Annotator "NA RC"]
[PlyCount "85"]
[EventDate "2022.04.11"]
[EventType "swiss"]
[EventCountry "AUT"]
[SourceTitle "playchess.com"]
[Source "ChessBase"]
[SourceQuality "1"]
[TimeControl "5400+30"]

1. d4 {[%emt 0:00:03]} d5 {[%emt 0:00:08]} 2. c4 {[%emt 0:00:08]} e6 {[%emt 0:00:17]} 3. Nc3 {[%emt 0:00:25]} Nf6 {[%emt 0:00:19]} 4. cxd5 {[%emt 0:00:18]} exd5 {[%emt 0:00:25]} 5. Bg5 {[%emt 0:00:19]} Be7 {[%emt 0:00:31]} 6. e3 {[%emt 0:00:40]} c6 {[%emt 0:00:35]} 7. Bd3 {[%emt 0:00:28]} Nbd7 {[%emt 0:02:58]} 8. Nge2 {[%emt 0:01:40]} O-O {[%emt 0:02:23]} 9. Qc2 {[%emt 0:00:46]} Re8 {[%emt 0:01:14]} 10. O-O {[%emt 0:02:07]} Nf8 {[%emt 0:00:55]} 11. Rad1 {[%emt 0:01:42]} Bg4 {[%emt 0:05:38]} 12. f3 {[%emt 0:04:19]} Bh5 {[%emt 0:00:49]} 13. e4 {[%emt 0:09:15]} dxe4 {[%emt 0:06:48]} 14. fxe4 {[%emt 0:00:48]} Bg6 {[%emt 0:03:58]} 15. Bxf6 {[%emt 0:13:29]} Bxf6 {[%emt 0:00:34]} 16. e5 {[%emt 0:00:20]} Be7 {[%emt 0:05:14]} 17. Qb3 {[%emt 0:15:58]} Qb6 {[%emt 0:06:06]} 18. Bxg6 {[%emt 0:03:32]} Qxb3 {[%emt 0:00:36]} 19. Bxh7+ {[%emt 0:00:09]} Nxh7 {[%emt 0:00:13]} 20. axb3 {[%emt 0:00:02]} Rad8 {[%emt 0:00:55]} 21. Ne4 {[%emt 0:01:28]} Ng5 {[%emt 0:00:48]} 22. N2c3 {[%emt 0:01:40]} Nxe4 {[%emt 0:00:29]} 23. Nxe4 {[%emt 0:00:28]} Rd5 {[%emt 0:00:39]} 24. Nc3 {[%emt 0:01:22]} Rd7 {[%emt 0:00:12]} 25. Rd3 {[%emt 0:09:17]} Red8 {[%emt 0:03:11]} 26. Rfd1 {[%emt 0:01:31]} Bc5 {[%emt 0:01:08]} 27. Ne2 {[%emt 0:01:01]} Bb6 {[%emt 0:00:41]} 28. Kf2 {[%emt 0:07:58]} c5 {[%emt 0:00:44]} 29. Ke3 {[%emt 0:01:22]} cxd4+ {[%emt 0:00:10]} 30. Ke4 {[%emt 0:00:59]} Re7 {[%emt 0:04:35]} 31. Nxd4 {[%emt 0:06:15]} Bxd4 {[%emt 0:00:32]} 32. Rxd4 {[%emt 0:01:48]} Rde8 {[%emt 0:00:07]} 33. Rd5 {[%emt 0:00:42]} f6 {[%emt 0:00:13]} 34. Kf5 {[%emt 0:01:56]} Rxe5+ {[%emt 0:00:13]} 35. Kg6 {[%emt 0:00:34]} Re2 {[%emt 0:02:35]} 36. R1d2 {[%emt 0:00:49]} R2e4 {[%emt 0:02:15]} 37. R5d4 {[%emt 0:04:26]} R4e5 {[%emt 0:00:38]} 38. h4 {[%emt 0:01:12]} Kf8 {[%emt 0:02:42]} 39. Rd7 {[%emt 0:01:09]} R5e7 {[%emt 0:02:24]} 40. Rxe7 {[%emt 0:00:16]} Kxe7 {[%emt 0:00:11]} 41. Re2+ {[%emt 0:00:11]} Kd7 {[%emt 0:00:04]} 42. Rxe8 {[%emt 0:00:07]} Kxe8 {[%emt 0:00:06]} 43. Kxg7 {[%emt 0:00:08]} 1-0

[Event "AUT-ch U14 Boys 2022"]
[Site "Sankt Veit an der Glan"]
[Date "2022.04.10"]
[Round "1"]
[White "Wimmer, Michael"]
[Black "Schwarz, Felix"]
[Result "1-0"]
[ECO "C08"]
[WhiteElo "1753"]
[BlackElo "1831"]
[Annotator "NA RC"]
[PlyCount "67"]
[EventDate "2022.04.11"]
[EventType "swiss"]
[EventCountry "AUT"]
[SourceTitle "playchess.com"]
[Source "ChessBase"]
[SourceQuality "1"]
[TimeControl "5400+30"]

1. e4 {[%emt 0:00:08]} e6 {[%emt 0:00:23]} 2. d4 {[%emt 0:00:16]} d5 {[%emt 0:00:08]} 3. Nd2 {[%emt 0:00:15]} c5 {[%emt 0:00:44]} 4. exd5 {[%emt 0:00:28]} exd5 {[%emt 0:00:22]} 5. Ngf3 {[%emt 0:00:53]} Nf6 {[%emt 0:00:59]} 6. Bb5+ {[%emt 0:00:22]} Bd7 {[%emt 0:01:02]} 7. Bxd7+ {[%emt 0:00:32]} Nbxd7 {[%emt 0:00:18]} 8. O-O {[%emt 0:00:39]} Be7 {[%emt 0:00:23]} 9. dxc5 {[%emt 0:02:22]} Nxc5 {[%emt 0:00:47]} 10. Nb3 {[%emt 0:02:17]} O-O {[%emt 0:01:10]} 11. Be3 {[%emt 0:03:58]} b6 {[%emt 0:04:12]} 12. Re1 {[%emt 0:07:39]} Nxb3 {[%emt 0:01:37]} 13. axb3 {[%emt 0:00:28]} Ng4 {[%emt 0:01:40]} 14. Bd4 {[%emt 0:03:52]} Bf6 {[%emt 0:01:06]} 15. h3 {[%emt 0:02:17]} Bxd4 {[%emt 0:01:10]} 16. Nxd4 {[%emt 0:03:42]} Nf6 {[%emt 0:01:09]} 17. Qd3 {[%emt 0:08:11]} Re8 {[%emt 0:03:07]} 18. b4 {[%emt 0:04:36]} Qd7 {[%emt 0:02:07]} 19. b5 {[%emt 0:04:27]} Rxe1+ {[%emt 0:07:17]} 20. Rxe1 {[%emt 0:00:11]} Re8 {[%emt 0:00:08]} 21. Rd1 {[%emt 0:02:10]} Ne4 {[%emt 0:01:49]} 22. Nc6 {[%emt 0:04:06]} Re6 {[%emt 0:06:02]} 23. c4 {[%emt 0:07:11]} Rd6 {[%emt 0:01:57]} 24. cxd5 {[%emt 0:08:02]} Nf6 {[%emt 0:00:51]} 25. Qc4 {[%emt 0:01:56]} h6 {[%emt 0:01:25]} 26. Nb4 {[%emt 0:04:19]} Ne8 {[%emt 0:02:02]} 27. Nc6 {[%emt 0:03:56]} Nf6 {[%emt 0:00:13]} 28. Ne5 {[%emt 0:02:28]} Qf5 {[%emt 0:02:17]} 29. f4 {[%emt 0:00:50]} Ne4 {[%emt 0:02:06]} 30. Re1 {[%emt 0:02:23]} Nc5 {[%emt 0:05:06]} 31. b4 {[%emt 0:03:04]} Na4 {[%emt 0:01:31]} 32. Nc6 {[%emt 0:02:13]} Kh7 {[%emt 0:00:49]} 33. Ne7 {[%emt 0:01:37]} Qf6 {[%emt 0:04:22]} 34. Qc8 {[%emt 0:01:32]} 1-0

[Event "AUT-ch U14 Boys 2022"]
[Site "Sankt Veit an der Glan"]
[Date "2022.04.10"]
[Round "1"]
[White "Wohlgenannt, Nicolas"]
[Black "Ernst, Robert"]
[Result "0-1"]
[ECO "B47"]
[WhiteElo "1692"]
[BlackElo "1792"]
[Annotator "NA RC"]
[PlyCount "54"]
[EventDate "2022.04.11"]
[EventType "swiss"]
[EventCountry "AUT"]
[SourceTitle "playchess.com"]
[Source "ChessBase"]
[SourceQuality "1"]
[TimeControl "5400+30"]

1. e4 {[%emt 0:00:03]} c5 {[%emt 0:00:08]} 2. Nf3 {[%emt 0:00:05]} e6 {[%emt 0:00:08]} 3. d4 {[%emt 0:00:03]} cxd4 {[%emt 0:00:07]} 4. Nxd4 {[%emt 0:00:05]} Nc6 {[%emt 0:00:12]} 5. Nc3 {[%emt 0:00:31]} Qc7 {[%emt 0:00:12]} 6. f3 {[%emt 0:02:16]} a6 {[%emt 0:00:09]} 7. Be3 {[%emt 0:00:14]} b5 {[%emt 0:01:53]} 8. Qd2 {[%emt 0:06:19]} Ne5 {[%emt 0:03:40]} 9. Bf4 {[%emt 0:09:21]} Nf6 {[%emt 0:09:51]} 10. a4 {[%emt 0:11:08]} b4 {[%emt 0:02:38]} 11. Nce2 {[%emt 0:05:38]} d5 {[%emt 0:09:02]} 12. Ng3 {[%emt 0:07:27]} Bb7 {[%emt 0:03:06]} 13. O-O-O {[%emt 0:09:20]} Be7 {[%emt 0:28:47]} 14. Re1 {[%emt 0:11:53]} dxe4 {[%emt 0:03:13]} 15. Nb3 {[%emt 0:09:44]} Rd8 {[%emt 0:13:38]} 16. Qe3 {[%emt 0:07:48]} O-O {[%emt 0:07:10]} 17. Nxe4 {[%emt 0:06:57]} Nd5 {[%emt 0:01:09]} 18. Bxe5 {[%emt 0:00:34]} Qxe5 {[%emt 0:00:13]} 19. Qa7 {[%emt 0:03:38]} Rd7 {[%emt 0:02:50]} 20. Nbc5 {[%emt 0:03:26]} Bxc5 {[%emt 0:06:25]} 21. Qxc5 {[%emt 0:00:13]} f5 {[%emt 0:00:02]} 22. f4 {[%emt 0:01:59]} Qxf4+ {[%emt 0:00:10]} 23. Nd2 {[%emt 0:00:10]} Rc8 {[%emt 0:01:12]} 24. Qg1 {[%emt 0:01:00]} Rdc7 {[%emt 0:01:33]} 25. Bd3 {[%emt 0:01:16]} b3 {[%emt 0:00:27]} 26. c3 {[%emt 0:00:40]} Nxc3 {[%emt 0:00:20]} 27. bxc3 {[%emt 0:00:39]} Rxc3+ {[%emt 0:00:06]} 0-1

[Event "AUT-ch U14 Boys 2022"]
[Site "Sankt Veit an der Glan"]
[Date "2022.04.10"]
[Round "1"]
[White "Gruenwald, Simon"]
[Black "Puschnig, Jason"]
[Result "1-0"]
[ECO "C54"]
[WhiteElo "1584"]
[BlackElo "1721"]
[Annotator "NA RC"]
[PlyCount "71"]
[EventDate "2022.04.11"]
[EventType "swiss"]
[EventCountry "AUT"]
[SourceTitle "playchess.com"]
[Source "ChessBase"]
[SourceQuality "1"]
[TimeControl "5400+30"]

1. e4 {[%emt 0:00:03]} e5 {[%emt 0:00:08]} 2. Nf3 {[%emt 0:00:05]} Nc6 {[%emt 0:00:07]} 3. Bc4 {[%emt 0:00:04]} Bc5 {[%emt 0:00:07]} 4. c3 {[%emt 0:00:05]} Nf6 {[%emt 0:00:26]} 5. d4 {[%emt 0:00:53]} exd4 {[%emt 0:00:15]} 6. e5 {[%emt 0:00:28]} d5 {[%emt 0:08:30]} 7. Bb5 {[%emt 0:00:01]} Ne4 {[%emt 0:17:13]} 8. cxd4 {[%emt 0:00:11]} Bb4+ {[%emt 0:02:14]} 9. Bd2 {[%emt 0:00:10]} Bxd2+ {[%emt 0:00:22]} 10. Nbxd2 {[%emt 0:00:09]} Bd7 {[%emt 0:01:02]} 11. O-O {[%emt 0:01:47]} O-O {[%emt 0:01:11]} 12. Bxc6 {[%emt 0:01:16]} Bxc6 {[%emt 0:00:16]} 13. Re1 {[%emt 0:00:12]} Re8 {[%emt 0:06:28]} 14. Qb3 {[%emt 0:06:54]} Qd7 {[%emt 0:04:41]} 15. Qe3 {[%emt 0:12:29]} Qf5 {[%emt 0:05:09]} 16. Nxe4 {[%emt 0:12:05]} dxe4 {[%emt 0:05:13]} 17. Nd2 {[%emt 0:06:37]} Qg4 {[%emt 0:13:05]} 18. Nxe4 {[%emt 0:02:32]} f5 {[%emt 0:03:11]} 19. Qg3 {[%emt 0:03:33]} Rad8 {[%emt 0:06:30]} 20. Qxg4 {[%emt 0:02:17]} fxg4 {[%emt 0:00:14]} 21. Rad1 {[%emt 0:01:10]} Rf8 {[%emt 0:12:19]} 22. Nc3 {[%emt 0:08:16]} Bd5 {[%emt 0:07:35]} 23. Nb5 {[%emt 0:18:45]} c6 {[%emt 0:01:18]} 24. Nd6 {[%emt 0:00:46]} Rd7 {[%emt 0:00:59]} 25. b4 {[%emt 0:02:21]} Bxa2 {[%emt 0:02:48]} 26. Ra1 {[%emt 0:00:10]} Bd5 {[%emt 0:00:35]} 27. Rxa7 {[%emt 0:00:29]} Rf4 {[%emt 0:00:59]} 28. Rd1 {[%emt 0:03:12]} Bb3 {[%emt 0:00:36]} 29. Rd2 {[%emt 0:00:32]} h6 {[%emt 0:00:46]} 30. Rxb7 {[%emt 0:00:31]} Rxb7 {[%emt 0:00:12]} 31. Nxb7 {[%emt 0:00:01]} Re4 {[%emt 0:00:22]} 32. f3 {[%emt 0:00:43]} gxf3 {[%emt 0:00:52]} 33. gxf3 {[%emt 0:00:35]} Rf4 {[%emt 0:00:40]} 34. Kf2 {[%emt 0:05:01]} Bd5 {[%emt 0:00:20]} 35. Rd3 {[%emt 0:01:05]} c5 {[%emt 0:00:38]} 36. Nxc5 {[%emt 0:00:16]} 1-0

[Event "AUT-ch U14 Boys 2022"]
[Site "Sankt Veit an der Glan"]
[Date "2022.04.10"]
[Round "1"]
[White "Winkelbauer, Christian"]
[Black "Standhartinger, Joachim"]
[Result "1-0"]
[ECO "A36"]
[WhiteElo "1577"]
[BlackElo "1729"]
[Annotator "NA RC"]
[PlyCount "103"]
[EventDate "2022.04.11"]
[EventType "swiss"]
[EventCountry "AUT"]
[SourceTitle "playchess.com"]
[Source "ChessBase"]
[SourceQuality "1"]
[TimeControl "5400+30"]

1. c4 {[%emt 0:00:03]} c5 {[%emt 0:00:04]} 2. g3 {[%emt 0:00:02]} g6 {[%emt 0:00:11]} 3. Bg2 {[%emt 0:00:03]} Bg7 {[%emt 0:00:09]} 4. Nc3 {[%emt 0:00:54]} Nc6 {[%emt 0:00:06]} 5. d3 {[%emt 0:00:11]} d6 {[%emt 0:00:06]} 6. e4 {[%emt 0:00:22]} Nf6 {[%emt 0:05:44]} 7. Nge2 {[%emt 0:00:34]} O-O {[%emt 0:01:07]} 8. O-O {[%emt 0:00:03]} Rb8 {[%emt 0:13:54]} 9. h3 {[%emt 0:01:42]} a6 {[%emt 0:02:09]} 10. f4 {[%emt 0:00:32]} Bd7 {[%emt 0:09:03]} 11. a4 {[%emt 0:02:40]} Nb4 {[%emt 0:07:26]} 12. Rb1 {[%emt 0:11:31]} b5 {[%emt 0:08:11]} 13. axb5 {[%emt 0:03:23]} axb5 {[%emt 0:00:16]} 14. b3 {[%emt 0:00:17]} Ne8 {[%emt 0:20:52]} 15. f5 {[%emt 0:06:32]} Nc7 {[%emt 0:02:22]} 16. g4 {[%emt 0:05:31]} Nc6 {[%emt 0:04:19]} 17. Be3 {[%emt 0:06:08]} Ne5 {[%emt 0:06:41]} 18. Nd5 {[%emt 0:16:32]} e6 {[%emt 0:03:54]} 19. Nxc7 {[%emt 0:03:03]} Qxc7 {[%emt 0:00:14]} 20. f6 {[%emt 0:00:36]} Bh8 {[%emt 0:00:09]} 21. g5 {[%emt 0:00:12]} Rfd8 {[%emt 0:03:47]} 22. Bf4 {[%emt 0:01:41]} Nc6 {[%emt 0:02:17]} 23. Nc3 {[%emt 0:01:41]} Nd4 {[%emt 0:01:54]} 24. Rf2 {[%emt 0:06:23]} h6 {[%emt 0:02:20]} 25. h4 {[%emt 0:00:47]} h5 {[%emt 0:00:36]} 26. Ra2 {[%emt 0:02:05]} e5 {[%emt 0:01:14]} 27. Be3 {[%emt 0:01:23]} Bg4 {[%emt 0:01:15]} 28. Qf1 {[%emt 0:01:18]} b4 {[%emt 0:00:49]} 29. Nd5 {[%emt 0:00:36]} Qd7 {[%emt 0:00:13]} 30. Bxd4 {[%emt 0:00:38]} exd4 {[%emt 0:00:22]} 31. Rba1 {[%emt 0:00:24]} Kf8 {[%emt 0:00:46]} 32. Ra7 {[%emt 0:01:41]} Rb7 {[%emt 0:02:42]} 33. R7a6 {[%emt 0:02:25]} Qe6 {[%emt 0:00:50]} 34. Rc6 {[%emt 0:02:21]} Qe5 {[%emt 0:00:25]} 35. Qf4 {[%emt 0:00:45]} Qe6 {[%emt 0:00:48]} 36. Bf3 {[%emt 0:02:57]} Bxf3 {[%emt 0:00:20]} 37. Qxf3 {[%emt 0:00:02]} Qd7 {[%emt 0:00:14]} 38. Raa6 {[%emt 0:00:20]} Ra7 {[%emt 0:00:54]} 39. Qg3 {[%emt 0:01:29]} Rda8 {[%emt 0:00:39]} 40. Rxa7 {[%emt 0:00:21]} Rxa7 {[%emt 0:00:29]} 41. Qxd6+ {[%emt 0:02:20]} Qxd6 {[%emt 0:00:14]} 42. Rxd6 {[%emt 0:00:02]} Ke8 {[%emt 0:00:10]} 43. Rc6 {[%emt 0:00:27]} Ra5 {[%emt 0:00:20]} 44. Rc8+ {[%emt 0:00:16]} Kd7 {[%emt 0:00:05]} 45. Rxh8 {[%emt 0:00:48]} Ra3 {[%emt 0:00:11]} 46. Rh7 {[%emt 0:01:03]} Rxb3 {[%emt 0:01:35]} 47. Rxf7+ {[%emt 0:00:08]} Ke8 {[%emt 0:00:18]} 48. Re7+ {[%emt 0:00:20]} Kf8 {[%emt 0:00:07]} 49. Nc7 {[%emt 0:00:33]} Rb1+ {[%emt 0:01:14]} 50. Kg2 {[%emt 0:00:06]} Rd1 {[%emt 0:00:52]} 51. Ne6+ {[%emt 0:00:03]} Kg8 {[%emt 0:00:22]} 52. f7+ {[%emt 0:00:02]} 1-0

[Event "AUT-ch U14 Boys 2022"]
[Site "Sankt Veit an der Glan"]
[Date "2022.04.10"]
[Round "1"]
[White "Gan-Erdene, Ganbat"]
[Black "Guba, Viktor"]
[Result "0-1"]
[ECO "B23"]
[WhiteElo "1526"]
[BlackElo "1598"]
[Annotator "NA RC"]
[PlyCount "86"]
[EventDate "2022.04.11"]
[EventType "swiss"]
[EventCountry "AUT"]
[SourceTitle "playchess.com"]
[Source "ChessBase"]
[SourceQuality "1"]
[TimeControl "5400+30"]

1. e4 {[%emt 0:00:03]} c5 {[%emt 0:00:21]} 2. f4 {[%emt 0:00:14]} Nc6 {[%emt 0:00:39]} 3. Nf3 {[%emt 0:00:21]} e6 {[%emt 0:01:00]} 4. Bb5 {[%emt 0:00:49]} Nge7 {[%emt 0:01:14]} 5. Nc3 {[%emt 0:01:24]} d5 {[%emt 0:02:03]} 6. d3 {[%emt 0:02:13]} d4 {[%emt 0:01:01]} 7. Ne2 {[%emt 0:00:16]} Qa5+ {[%emt 0:00:14]} 8. Nc3 {[%emt 0:03:11]} dxc3 {[%emt 0:00:43]} 9. Bxc6+ {[%emt 0:00:08]} Nxc6 {[%emt 0:00:07]} 10. bxc3 {[%emt 0:00:11]} g6 {[%emt 0:03:51]} 11. O-O {[%emt 0:03:15]} Bg7 {[%emt 0:03:10]} 12. e5 {[%emt 0:03:12]} O-O {[%emt 0:02:01]} 13. Bb2 {[%emt 0:01:51]} Rd8 {[%emt 0:11:47]} 14. a3 {[%emt 0:03:22]} Qc7 {[%emt 0:01:54]} 15. Qe2 {[%emt 0:05:52]} b6 {[%emt 0:02:56]} 16. Rad1 {[%emt 0:02:49]} Ba6 {[%emt 0:04:02]} 17. Rd2 {[%emt 0:02:27]} Rd7 {[%emt 0:03:06]} 18. Rfd1 {[%emt 0:02:02]} Re8 {[%emt 0:00:57]} 19. Qf2 {[%emt 0:03:04]} Red8 {[%emt 0:05:42]} 20. Ng5 {[%emt 0:01:39]} h6 {[%emt 0:02:44]} 21. Ne4 {[%emt 0:03:51]} c4 {[%emt 0:08:23]} 22. d4 {[%emt 0:03:35]} Ne7 {[%emt 0:02:52]} 23. Nd6 {[%emt 0:03:27]} Bb7 {[%emt 0:04:15]} 24. Rb1 {[%emt 0:12:15]} a6 {[%emt 0:01:46]} 25. Ba1 {[%emt 0:05:43]} Nc8 {[%emt 0:01:03]} 26. Nxc8 {[%emt 0:03:09]} Rxc8 {[%emt 0:00:22]} 27. Qe2 {[%emt 0:03:12]} Bd5 {[%emt 0:01:03]} 28. Rb4 {[%emt 0:06:01]} f6 {[%emt 0:03:46]} 29. Qf1 {[%emt 0:03:43]} fxe5 {[%emt 0:00:29]} 30. fxe5 {[%emt 0:00:09]} Rf7 {[%emt 0:00:25]} 31. Rf2 {[%emt 0:00:13]} b5 {[%emt 0:00:52]} 32. Rb1 {[%emt 0:00:45]} Rcf8 {[%emt 0:00:39]} 33. Rxf7 {[%emt 0:00:38]} Qxf7 {[%emt 0:00:09]} 34. Bb2 {[%emt 0:00:17]} Qxf1+ {[%emt 0:00:35]} 35. Rxf1 {[%emt 0:00:07]} Rxf1+ {[%emt 0:00:04]} 36. Kxf1 {[%emt 0:00:08]} h5 {[%emt 0:00:19]} 37. Bc1 {[%emt 0:00:05]} Kh7 {[%emt 0:00:04]} 38. g3 {[%emt 0:02:03]} Bh6 {[%emt 0:00:51]} 39. Bf4 {[%emt 0:00:05]} g5 {[%emt 0:00:23]} 40. Be3 {[%emt 0:00:12]} g4 {[%emt 0:00:06]} 41. Bf4 {[%emt 0:01:28]} Bxf4 {[%emt 0:00:10]} 42. gxf4 {[%emt 0:00:04]} Kg6 {[%emt 0:00:07]} 43. Kf2 {[%emt 0:00:17]} Kf5 {[%emt 0:00:06]} 0-1

[Event "AUT-ch U14 Boys 2022"]
[Site "Sankt Veit an der Glan"]
[Date "2022.04.10"]
[Round "1"]
[White "Roessler, Felix"]
[Black "Nguyen, Le Minh Phu"]
[Result "0-1"]
[ECO "E43"]
[WhiteElo "1512"]
[BlackElo "2080"]
[Annotator "NA RC"]
[PlyCount "62"]
[EventDate "2022.04.11"]
[EventType "swiss"]
[EventCountry "AUT"]
[SourceTitle "playchess.com"]
[Source "ChessBase"]
[SourceQuality "1"]
[TimeControl "5400+30"]

1. d4 {[%emt 0:00:02]} Nf6 {[%emt 0:00:05]} 2. c4 {[%emt 0:00:07]} e6 {[%emt 0:00:02]} 3. Nc3 {[%emt 0:00:09]} Bb4 {[%emt 0:00:03]} 4. Nf3 {[%emt 0:00:12]} b6 {[%emt 0:00:44]} 5. e3 {[%emt 0:00:14]} Bb7 {[%emt 0:00:13]} 6. Bd3 {[%emt 0:00:21]} Ne4 {[%emt 0:01:02]} 7. Qc2 {[%emt 0:00:16]} f5 {[%emt 0:00:13]} 8. O-O {[%emt 0:00:11]} Bxc3 {[%emt 0:00:09]} 9. bxc3 {[%emt 0:00:11]} O-O {[%emt 0:00:04]} 10. Nd2 {[%emt 0:02:54]} Nxd2 {[%emt 0:02:39]} 11. Bxd2 {[%emt 0:00:20]} d6 {[%emt 0:01:07]} 12. Rfe1 {[%emt 0:01:53]} Qh4 {[%emt 0:01:27]} 13. Re2 {[%emt 0:02:15]} Nd7 {[%emt 0:07:11]} 14. f4 {[%emt 0:08:25]} Nf6 {[%emt 0:01:05]} 15. Rf1 {[%emt 0:02:34]} c5 {[%emt 0:01:55]} 16. Be1 {[%emt 0:10:33]} Qh5 {[%emt 0:00:44]} 17. h3 {[%emt 0:08:07]} Ne4 {[%emt 0:02:16]} 18. Bxe4 {[%emt 0:12:56]} Bxe4 {[%emt 0:00:07]} 19. Qd2 {[%emt 0:00:37]} d5 {[%emt 0:00:55]} 20. cxd5 {[%emt 0:00:36]} exd5 {[%emt 0:00:05]} 21. Bg3 {[%emt 0:03:16]} c4 {[%emt 0:01:08]} 22. Ra1 {[%emt 0:02:42]} Rf6 {[%emt 0:02:14]} 23. Kh2 {[%emt 0:02:54]} Re8 {[%emt 0:00:14]} 24. Rf2 {[%emt 0:02:45]} Ree6 {[%emt 0:02:26]} 25. Rg1 {[%emt 0:01:30]} Rh6 {[%emt 0:02:40]} 26. Qe2 {[%emt 0:05:01]} Qe8 {[%emt 0:00:19]} 27. Qd2 {[%emt 0:00:48]} Qe7 {[%emt 0:00:58]} 28. Re1 {[%emt 0:00:56]} Reg6 {[%emt 0:00:20]} 29. Rg1 {[%emt 0:00:28]} Rxg3 {[%emt 0:00:24]} 30. Kxg3 {[%emt 0:00:07]} Qh4+ {[%emt 0:00:04]} 31. Kh2 {[%emt 0:00:13]} Bxg2 {[%emt 0:00:06]} 0-1

[Event "AUT-ch U14 Boys 2022"]
[Site "Sankt Veit an der Glan"]
[Date "2022.04.10"]
[Round "1"]
[White "Feiertag, Jonas"]
[Black "Geroe, Leonhard"]
[Result "0-1"]
[ECO "B23"]
[WhiteElo "1289"]
[BlackElo "1935"]
[Annotator "NA RC"]
[PlyCount "38"]
[EventDate "2022.04.11"]
[EventType "swiss"]
[EventCountry "AUT"]
[SourceTitle "playchess.com"]
[Source "ChessBase"]
[SourceQuality "1"]
[TimeControl "5400+30"]

1. e4 {[%emt 0:00:06]} c5 {[%emt 0:00:05]} 2. Nc3 {[%emt 0:00:07]} Nc6 {[%emt 0:00:16]} 3. f4 {[%emt 0:00:26]} e6 {[%emt 0:00:13]} 4. Nf3 {[%emt 0:00:30]} d5 {[%emt 0:00:21]} 5. Bb5 {[%emt 0:00:37]} Nge7 {[%emt 0:00:22]} 6. e5 {[%emt 0:03:48]} Bd7 {[%emt 0:03:06]} 7. d3 {[%emt 0:07:24]} Nf5 {[%emt 0:01:09]} 8. Bxc6 {[%emt 0:04:04]} Bxc6 {[%emt 0:02:05]} 9. d4 {[%emt 0:02:20]} Qb6 {[%emt 0:06:54]} 10. Ne2 {[%emt 0:01:56]} Bb5 {[%emt 0:00:45]} 11. c3 {[%emt 0:02:55]} Bxe2 {[%emt 0:07:42]} 12. Qxe2 {[%emt 0:00:32]} cxd4 {[%emt 0:01:08]} 13. Nxd4 {[%emt 0:01:18]} Nxd4 {[%emt 0:00:21]} 14. cxd4 {[%emt 0:00:04]} Qxd4 {[%emt 0:02:10]} 15. Qb5+ {[%emt 0:00:36]} Kd8 {[%emt 0:00:13]} 16. Qxb7 {[%emt 0:06:55]} Bb4+ {[%emt 0:04:07]} 17. Kf1 {[%emt 0:04:53]} Rc8 {[%emt 0:02:52]} 18. Qb5 {[%emt 0:04:54]} a6 {[%emt 0:29:12]} 19. Qe2 {[%emt 0:02:11]} Rxc1+ {[%emt 0:00:24]} 0-1